{"text_format":"3","workbook":"xlsx","n_sheets":3,"sheets":["Sheet1","Sheet2","Sheet3"],"not_rendered":{"defined_names":1},"read":"whole","date_system":"1900"}

{"sheet":"Sheet1","index":0,"n_rows":28,"n_cols":5,"rows_kept":28,"merged":[[25,3,25,4]]}
[]
["Equipment & Upfitting for One (1) 2018 Ford Taurus (Civilian Model) for Marked School Resource Officer"]
[]
["Quantity","Vendor Part #","Description","Unit Price","Extended Price"]
[1,"ENFWB","Nforce Inerior Lightbar - Need to Configure R/W DS B/W PS",null,{"$f":"A5*D5","v":0}]
[2,"ELUC3H010W","SoundOff White Universal Screw-In LED Insert w/ 10' wire",null,{"$f":"A6*D6","v":0}]
[2,"ENT2B3D","Intersector LED Under Mirror Warning Ligh Red/White",null,0]
[1,"PNT1CRV04","Curved Surface Adaptor for 13+ Taurus",null,0]
[1,"ENFWB0037H","SoundOff nForce Rear Interior Dual Color Lightbar",null,0]
[2,"VTX609B","Whalen Vertex LED Light Blue",null,0]
[1,"ETFBSSN-P","SoundOff Signal Backflash Module, Ford",null,0]
[1,"ETSA461HPP","400 Series 100 Watt Handheld Siren ",null,0]
[1,"ETSS100L","100L Series Pro. Speaker w. Universal Bail Bracket-100 Watt",null,0]
[1,"ETSS100BKFD-FR","Ford PI Sedan Vehicle Specific Speaker Brkt Behind Grill",null,0]
[1,"MI0001","Patrol Power Mini Universal Power Management",null,0]
[2,null,"Twenty five foot radio coax cable kit with FME",null,0]
[2,"NMOCAPB","Larsen Black Plastic Rain Cap for NMO Mount",null,0]
[1,null,"Prewire for local radio installation of ???? Radio. ",null,0]
[1,"GRAPHICS","KPD Police Ghosted Grayscale Graphics. Same as current design; however, all graphics will be ghosted.  Where \"Supervisor\" is normally placed on each of the front quarter panels, place \"School Resource Officer\" or \"SRO\" depending on which will fit and look best. On the rear deck lid add \"School Resource Officer\". Pictures are supplied for reference to current design.",null,0]
[1,null,"Shop Supplies",null,{"$f":"A20*D20","v":0}]
[1,null,"Shipping",null,{"$f":"A21*D21","v":0}]
[null,"# of Hours","Labor Charges to Install all above Equipment (Please List # of Hours in Qty)",null,{"$f":"A22*D22","v":0}]
[1,null,"Tax",null,{"$f":"A23*D23","v":0}]
[null,null,"Sub-Total",null,{"$f":"SUM(E5:E23)","v":0}]
[null,null,"Please state conditions and limitations of labor warranty"]
[null,null,"What is the estimated completion timeframe from receipt of purchase order?"]
[]
[null,null,"Grand Total for SRO Build",null,{"$f":"E24","v":0}]

{"sheet":"Sheet2","index":1,"n_rows":0,"n_cols":0,"rows_kept":0}

{"sheet":"Sheet3","index":2,"n_rows":0,"n_cols":0,"rows_kept":0}